bitfinex-derivatives/quotes_BTCF0:USTF0_20241117
["timestamp","ask_amount","ask_price","bid_price","bid_amount"]
[1731850261047,0.30675498,90826.0,90825.0,0.00011603]
[1731850261240,0.10860873,90826.0,90825.0,0.00011603]
[1731850261850,0.21989297,90826.0,90825.0,0.00011603]
[1731850262043,0.16483997,90828.0,90825.0,0.05516903]
[1731850262356,0.16483997,90829.0,90825.0,0.05516903]
[1731850262651,0.16483997,90829.0,90825.0,0.00011603]
[1731850262950,0.055053,90826.0,90825.0,0.00011603]
[1731850263757,0.055053,90826.0,90819.0,0.73]
[1731850263758,0.055056,90820.0,90819.0,0.73]
[1731850264554,0.21989597,90820.0,90819.0,0.73]
[1731850264857,0.055056,90820.0,90819.0,0.73]
[1731850265065,0.21978089,90820.0,90819.0,0.73]
[1731850265358,0.055056,90820.0,90819.0,0.73]
[1731850266860,0.18676572,90820.0,90819.0,0.73]
[1731850267054,0.18674483,90820.0,90819.0,0.73]
[1731850267451,0.13170166,90820.0,90819.0,0.73]
[1731850267654,0.3608,90824.0,90819.0,0.73]
[1731850267962,0.36136001,90827.0,90825.0,0.055053]
[1731850268147,0.3608,90827.0,90826.0,0.00550943]
[1731850270260,0.3608,90827.0,90826.0,0.00895296]
[1731850271360,0.3608,90827.0,90826.0,0.00344353]
[1731850271560,0.3608,90827.0,90826.0,0.0089531]
[1731850272057,0.3608,90827.0,90826.0,0.7389531]
[1731850272265,0.060145,90838.0,90836.0,0.055046]
[1731850272459,0.055045,90838.0,90837.0,0.00344353]
[1731850273158,0.055045,90838.0,90837.0,0.73344353]
[1731850273561,0.13170166,90841.0,90837.0,0.73344353]
[1731850273754,0.0321,90843.0,90838.0,0.00895223]
[1731850273755,0.16380166,90843.0,90838.0,0.00895223]
[1731850273957,0.16380166,90843.0,90837.0,0.73]
[1731850273958,0.0321,90843.0,90841.0,0.055043]
[1731850274155,0.3608,90844.0,90843.0,0.055042]
[1731850274354,0.3608,90844.0,90843.0,0.06399423]
[1731850274568,0.13170166,90845.0,90843.0,0.06399423]
[1731850274751,0.13170166,90850.0,90849.0,0.055039]
[1731850274953,0.00165155,90854.0,90852.0,0.055036]
[1731850275162,0.13333778,90854.0,90853.0,0.00894985]
[1731850275370,0.00165155,90854.0,90853.0,0.73894985]
[1731850277950,0.00165155,90854.0,90853.0,0.79411742]
[1731850280261,0.00165155,90854.0,90853.0,0.87991742]
[1731850280668,0.00165155,90854.0,90853.0,0.82474985]
[1731850283560,0.00165155,90854.0,90853.0,0.73894985]
[1731850284162,0.05668755,90854.0,90853.0,0.00894985]
[1731850284368,0.05504,90847.0,90842.0,0.0858]
[1731850284574,0.00165155,90854.0,90834.0,0.00311891]
[1731850284575,0.3608,90848.0,90843.0,0.055042]
[1731850284762,0.055041,90845.0,90843.0,0.785042]
[1731850286362,0.055041,90845.0,90843.0,0.80707168]
[1731850287576,0.0317,90844.0,90839.0,0.00056]
[1731850287761,0.0317,90844.0,90824.0,0.20078878]
[1731850287762,0.055048,90834.0,90833.0,0.02202968]
[1731850288162,0.055048,90834.0,90833.0,0.75202968]
[1731850289271,0.415844,90840.0,90838.0,0.055045]
[1731850289477,0.3608,90840.0,90838.0,0.055045]
[1731850290967,0.3608,90840.0,90839.0,0.055045]
[1731850291164,0.3608,90840.0,90835.0,0.08616]
[1731850291165,0.0317,90844.0,90835.0,0.08616]
[1731850291366,0.0317,90844.0,90843.0,0.055042]
[1731850291560,0.3608,90850.0,90849.0,0.055039]
[1731850291864,0.055036,90853.0,90846.0,0.08616]
[1731850292066,0.16563778,90854.0,90851.0,0.055037]
[1731850292067,0.055038,90852.0,90851.0,0.055037]
[1731850292266,0.03395155,90854.0,90853.0,0.055036]
[1731850292267,0.16563778,90854.0,90853.0,0.055036]
[1731850292575,0.03395155,90854.0,90853.0,0.055036]
[1731850294477,0.03395155,90854.0,90853.0,0.06054364]
[1731850294668,0.03395155,90854.0,90853.0,0.06742813]
[1731850294669,0.00165155,90854.0,90853.0,0.06742813]
[1731850296370,0.00165155,90854.0,90853.0,0.07087023]
[1731850297679,0.00010082,90857.0,90853.0,0.01583423]
[1731850297973,0.00010082,90857.0,90856.0,0.055034]
[1731850298172,0.00010082,90857.0,90856.0,0.07086823]
[1731850298370,0.00010082,90857.0,90856.0,0.59873493]
[1731850298564,0.00010082,90857.0,90856.0,1.4387986]
[1731850298761,0.0051,90867.0,90866.0,0.055028]
[1731850298960,0.13168623,90878.0,90877.0,0.055022]
[1731850299176,0.0944,90879.0,90877.0,0.07085306]
[1731850299364,0.0944,90879.0,90878.0,0.01583106]
[1731850299562,0.22139088,90888.0,90878.0,0.01583106]
[1731850299563,0.13168623,90887.0,90886.0,0.055016]
[1731850299766,8.741e-05,90887.0,90886.0,0.06396399]
[1731850299975,8.741e-05,90887.0,90886.0,0.07084612]
[1731850302775,8.741e-05,90887.0,90886.0,0.07396389]
[1731850302962,8.741e-05,90887.0,90886.0,0.80396389]
[1731850303578,8.741e-05,90887.0,90886.0,0.80084612]
[1731850305273,8.741e-05,90887.0,90886.0,0.785016]
[1731850305478,8.741e-05,90887.0,90886.0,0.79396162]
[1731850308384,8.741e-05,90887.0,90886.0,0.80084292]
[1731850309270,8.741e-05,90887.0,90886.0,0.93288933]
[1731850311391,8.741e-05,90887.0,90886.0,0.92600803]
[1731850311683,8.741e-05,90887.0,90886.0,1.01212803]
[1731850311886,8.741e-05,90887.0,90886.0,0.06396162]
[1731850312100,8.741e-05,90887.0,90882.0,0.00010905]
[1731850312101,0.36088741,90887.0,90882.0,0.00010905]
[1731850312292,0.055018,90883.0,90882.0,0.00010905]
[1731850312787,0.055018,90883.0,90882.0,1.88e-05]
[1731850313583,0.032,90885.0,90882.0,1.88e-05]
[1731850313779,0.032,90885.0,90884.0,0.055017]
[1731850313974,0.032,90885.0,90882.0,1.88e-05]
[1731850314288,0.032,90885.0,90874.0,0.05470165]
[1731850314289,0.032,90885.0,90874.0,0.08612]
[1731850314483,0.055021,90879.0,90878.0,0.055021]
[1731850314691,0.415821,90879.0,90878.0,0.055021]
[1731850316583,0.415821,90879.0,90878.0,0.06190386]
[1731850317787,0.3608,90879.0,90878.0,0.06190386]
[1731850320284,0.41582,90879.0,90878.0,0.00688286]
[1731850320591,0.41582,90879.0,90870.0,0.05511525]
[1731850320592,0.69092,90879.0,90870.0,7.78e-05]
[1731850320790,0.3608,90871.0,90870.0,7.78e-05]
[1731850320981,0.3608,90871.0,90870.0,0.7300778]
[1731850321188,0.415825,90871.0,90870.0,0.7300778]
[1731850321584,0.415825,90871.0,90870.0,7.78e-05]
[1731850322083,0.415825,90871.0,90870.0,0.00558466]
[1731850322285,0.055027,90868.0,90867.0,0.73056]
[1731850322590,0.05503,90864.0,90862.0,0.055031]
[1731850322895,0.05503,90863.0,90862.0,0.055031]
[1731850323082,0.41583,90863.0,90862.0,0.785031]
[1731850324088,0.41583,90863.0,90862.0,0.78847304]
[1731850324590,0.41583,90863.0,90862.0,0.00344204]
[1731850324803,0.055036,90853.0,90852.0,0.00011875]
[1731850325095,0.055036,90853.0,90852.0,0.73011875]
[1731850325594,0.087636,90853.0,90852.0,0.73011875]
[1731850326589,0.087636,90853.0,90852.0,0.00011875]
[1731850330189,0.3608,90854.0,90852.0,0.00011875]
[1731850330398,0.3608,90854.0,90853.0,0.055036]
[1731850331411,0.3608,90854.0,90853.0,0.785036]
[1731850331608,0.67843323,90872.0,90853.0,1.0908]
[1731850331800,0.3608,90872.0,90870.0,0.055026]
[1731850332198,0.3608,90872.0,90860.0,0.0858]
[1731850332199,0.055024,90874.0,90872.0,0.055025]
[1731850332603,0.415824,90874.0,90872.0,0.055025]
[1731850332799,0.415824,90874.0,90873.0,0.73]
[1731850334197,0.415824,90874.0,90872.0,0.055025]
[1731850335695,0.3608,90874.0,90872.0,0.055025]
[1731850336901,0.415824,90874.0,90873.0,0.00344169]
[1731850337596,0.055031,90862.0,90858.0,0.055033]
[1731850337805,0.055031,90862.0,90859.0,0.00894931]
[1731850338103,0.055031,90862.0,90860.0,0.00894931]
[1731850338319,0.055031,90862.0,90861.0,0.00894931]
[1731850341700,0.18656757,90862.0,90861.0,0.00894931]
[1731850342111,0.055031,90862.0,90861.0,0.00894931]
[1731850342307,0.18675673,90862.0,90861.0,0.00894931]
[1731850342923,0.055031,90862.0,90861.0,0.00344204]
[1731850343124,0.055031,90862.0,90848.0,0.73]
[1731850343125,0.50332991,90862.0,90848.0,0.73]
[1731850343326,0.415836,90853.0,90848.0,0.73056]
[1731850343515,0.46937491,90853.0,90848.0,0.00056]
[1731850343720,0.055045,90838.0,90837.0,0.05669699]
[1731850343920,0.055045,90838.0,90837.0,0.79055457]
[1731850343921,0.49255494,90838.0,90837.0,0.79055457]
[1731850344228,0.49257014,90838.0,90837.0,0.79055457]
[1731850344530,0.3608,90838.0,90837.0,0.79055457]
[1731850344725,0.49253929,90838.0,90837.0,0.79055457]
[1731850344918,0.3608,90838.0,90837.0,0.79055457]
[1731850345315,0.49253929,90838.0,90837.0,0.785046]
[1731850345522,0.3608,90838.0,90837.0,0.79055451]
[1731850346127,0.415845,90838.0,90837.0,0.79055451]
[1731850346925,0.54758429,90838.0,90837.0,0.81258362]
[1731850347137,0.415845,90838.0,90837.0,0.81258362]
[1731850347432,0.54757707,90838.0,90837.0,0.81258362]
[1731850348224,0.415845,90838.0,90837.0,0.81258362]
[1731850348435,0.54756107,90838.0,90837.0,0.81258362]
[1731850348729,0.54756179,90838.0,90837.0,0.81258362]
[1731850348927,0.54756179,90838.0,90837.0,0.8125838]
[1731850349122,0.415845,90838.0,90837.0,0.80707511]
[1731850349429,0.415845,90838.0,90837.0,0.81258383]
[1731850351527,0.415845,90838.0,90837.0,0.73550872]
[1731850351829,0.13173051,90847.0,90837.0,0.73550872]
[1731850352130,0.055043,90842.0,90840.0,0.055043]
[1731850352428,0.055043,90842.0,90841.0,0.00550872]
[1731850352736,0.3608,90844.0,90841.0,0.00550872]
[1731850353028,0.3608,90844.0,90842.0,0.055043]
[1731850353231,0.3608,90844.0,90843.0,0.0657]
[1731850353427,0.3608,90844.0,90843.0,0.07120872]
[1731850354524,0.3608,90846.0,90844.0,0.055042]
[1731850354735,0.3608,90846.0,90845.0,0.00550872]
[1731850355127,0.3608,90846.0,90845.0,0.00895139]
[1731850359237,0.41584,90846.0,90845.0,0.00895139]
[1731850359427,0.54757051,90846.0,90845.0,0.00895139]
[1731850359731,0.54757051,90846.0,90845.0,0.00344267]
[1731850359936,0.54753714,90846.0,90845.0,0.00344267]
[1731850360136,0.41584,90846.0,90845.0,0.00344267]
[1731850360437,0.41584,90846.0,90816.0,0.32948322]
[1731850360438,0.055047,90836.0,90822.0,0.02202911]
[1731850360633,0.055047,90836.0,90826.0,0.055052]
[1731850360634,0.415847,90836.0,90826.0,0.055052]
[1731850360940,0.54754246,90836.0,90826.0,0.055052]
[1731850361334,0.54901939,90836.0,90826.0,0.055052]
[1731850361532,0.41732393,90836.0,90828.0,0.055051]
[1731850361732,0.54901939,90836.0,90828.0,0.10918935]
[1731850362128,0.41732393,90836.0,90828.0,0.10918935]
[1731850362633,0.54901939,90836.0,90828.0,0.10918935]
[1731850363541,0.49397239,90836.0,90834.0,0.055048]
[1731850363730,0.49397239,90836.0,90835.0,0.00559764]
[1731850364432,0.36227693,90836.0,90835.0,0.00559764]
[1731850364632,0.36278807,90836.0,90835.0,0.00559764]
[1731850366035,0.41783507,90836.0,90835.0,0.00559764]
[1731850366543,0.41783507,90836.0,90835.0,0.00559767]
[1731850367142,0.5824544,90836.0,90835.0,0.00559767]
[1731850367340,0.5034882,90836.0,90835.0,8.874e-05]
[1731850369741,0.5034882,90836.0,90835.0,0.00559787]
[1731850371640,0.50359703,90836.0,90835.0,0.00559787]
[1731850371941,0.055057,90819.0,90818.0,0.0016514]
[1731850372140,0.055057,90819.0,90818.0,0.00716067]
[1731850372141,0.18698958,90819.0,90818.0,0.00716067]
[1731850372344,0.055057,90819.0,90818.0,0.00716067]
[1731850372648,0.22196079,90819.0,90818.0,0.01060408]
[1731850372940,0.05704507,90819.0,90818.0,0.01060408]
[1731850373335,0.05704507,90819.0,90818.0,0.00716115]
[1731850373536,0.05704507,90819.0,90818.0,0.01060474]
[1731850375232,0.08974507,90819.0,90818.0,0.01060474]
[1731850375845,0.055061,90812.0,90811.0,9.914e-05]
[1731850376144,0.415861,90812.0,90811.0,0.00560942]
[1731850376437,0.415861,90812.0,90811.0,9.914e-05]
[1731850376642,0.58064758,90812.0,90811.0,9.914e-05]
[1731850376943,0.58263565,90812.0,90811.0,9.914e-05]
[1731850377330,0.47141876,90812.0,90811.0,9.914e-05]
[1731850377537,0.91291605,90812.0,90811.0,9.914e-05]
[1731850377831,0.055073,90792.0,90787.0,0.055076]
[1731850378037,0.055073,90792.0,90790.0,0.005511]
[1731850378242,0.055073,90792.0,90791.0,0.735511]
[1731850378447,0.055073,90792.0,90791.0,0.005511]
[1731850378742,0.00198807,90792.0,90791.0,0.0055113]
[1731850378937,0.00198807,90792.0,90784.0,0.73008193]
[1731850379240,0.055077,90786.0,90784.0,0.73008193]
[1731850379744,0.055077,90786.0,90785.0,0.00551178]
[1731850379931,0.055077,90786.0,90785.0,0.00352371]
[1731850380134,0.3608,90787.0,90785.0,0.05860071]
[1731850380339,0.3608,90787.0,90785.0,0.055077]
[1731850381435,0.415876,90787.0,90785.0,0.055077]
[1731850384347,0.3608,90787.0,90785.0,0.055077]
[1731850386839,0.3608,90787.0,90784.0,0.73064193]
[1731850387048,0.3608,90787.0,90786.0,0.055077]
[1731850387437,0.055067,90803.0,90786.0,0.52642914]
[1731850387642,0.055067,90803.0,90801.0,0.055067]
[1731850387848,0.055067,90803.0,90802.0,0.00344448]
[1731850388046,0.055067,90803.0,90802.0,0.73344448]
[1731850388250,0.055067,90803.0,90802.0,0.00344448]
[1731850389849,0.3608,90807.0,90805.0,0.055065]
[1731850390054,0.3608,90807.0,90806.0,0.00895546]
[1731850390845,0.00165252,90811.0,90810.0,0.055062]
[1731850391051,0.00165252,90811.0,90810.0,0.06401746]
[1731850393545,0.05671452,90811.0,90810.0,0.06401746]
[1731850393939,0.05671452,90811.0,90810.0,0.00895546]
[1731850395451,0.18848601,90811.0,90810.0,0.00895546]
[1731850396249,0.38707452,90811.0,90810.0,0.00895546]
[1731850396450,0.38707452,90811.0,90788.0,0.055075]
[1731850396451,0.055074,90791.0,90788.0,0.055075]
[1731850396649,0.33201252,90811.0,90780.0,0.08584]
[1731850396650,0.3608,90798.0,90785.0,0.0360114]
[1731850396858,0.3608,90798.0,90796.0,0.05507]
[1731850397247,0.3608,90798.0,90788.0,0.0031114]
[1731850397446,0.055071,90796.0,90789.0,0.785075]
[1731850398359,0.055071,90796.0,90791.0,0.055074]
[1731850398851,0.3608,90798.0,90795.0,0.055071]
[1731850399059,0.3608,90798.0,90789.0,0.7336714]
[1731850399060,0.055071,90796.0,90789.0,0.73056]
[1731850399241,0.055071,90796.0,90791.0,0.055074]
[1731850399442,0.055072,90794.0,90791.0,0.0581854]
[1731850399645,0.3608,90798.0,90791.0,0.05819194]
[1731850399851,0.3608,90798.0,90791.0,0.055074]
[1731850400143,0.3608,90798.0,90791.0,0.00311794]
[1731850400351,0.055073,90792.0,90789.0,0.73367794]
[1731850400661,0.3608,90798.0,90789.0,0.73311794]
[1731850401159,0.3608,90798.0,90796.0,0.05507]
[1731850401453,0.54806322,90803.0,90796.0,0.05507]
[1731850401658,0.415867,90803.0,90796.0,0.05507]
[1731850401858,0.3608,90803.0,90793.0,0.00311794]
[1731850402157,0.3608,90803.0,90802.0,0.055067]
[1731850402349,0.00165252,90811.0,90807.0,0.055064]
[1731850402547,0.00165252,90811.0,90802.0,0.08584]
[1731850402548,0.00165252,90811.0,90809.0,0.055062]
[1731850402846,0.00165252,90811.0,90810.0,0.73]
[1731850404751,0.00165252,90811.0,90810.0,1.25729855]
[1731850405354,0.00165252,90811.0,90810.0,0.89649855]
[1731850406053,0.00165252,90811.0,90810.0,0.90338566]
[1731850406443,0.00165252,90811.0,90810.0,0.90889545]
[1731850406949,0.00165252,90811.0,90810.0,1.26280834]
[1731850407855,0.00165252,90811.0,90810.0,0.90200834]
[1731850408452,0.00165252,90811.0,90810.0,0.90545193]
[1731850410249,0.055061,90812.0,90810.0,0.00895338]
[1731850410448,0.055061,90812.0,90811.0,0.00895338]
[1731850410857,0.118961,90812.0,90811.0,0.00895338]
[1731850414175,0.118961,90812.0,90811.0,0.00344359]
[1731850415054,0.61403536,90812.0,90811.0,0.00344359]
[1731850415254,0.61403536,90812.0,90791.0,0.00311934]
[1731850415255,0.5887316,90812.0,90790.0,0.19766987]
[1731850415558,0.5887316,90812.0,90789.0,0.36391934]
[1731850415559,0.055073,90793.0,90791.0,0.00551097]
[1731850415858,0.055074,90791.0,90789.0,0.3608]
[1731850416059,0.055074,90791.0,90790.0,0.00551122]
[1731850416254,0.055074,90791.0,90790.0,0.73551122]
[1731850419057,0.18694167,90791.0,90790.0,0.73551122]
[1731850419455,0.2198732,90796.0,90790.0,0.79058522]
[1731850419662,0.055073,90792.0,90791.0,0.00551122]
[1731850420856,0.18690247,90792.0,90791.0,0.00551122]
[1731850422857,0.055073,90792.0,90791.0,0.00551122]
[1731850423461,0.13182947,90794.0,90792.0,0.055073]
[1731850423773,0.13182947,90794.0,90793.0,0.00551122]
[1731850424170,0.055071,90796.0,90793.0,0.00551122]
[1731850424171,0.13182947,90795.0,90793.0,0.00551122]
[1731850424467,0.13182947,90795.0,90794.0,0.00551122]
[1731850424675,0.055071,90796.0,90794.0,0.00551122]
[1731850424971,0.055071,90796.0,90795.0,0.00551122]
[1731850425362,0.055072,90795.0,90790.0,0.73056]
[1731850425563,0.055072,90795.0,90791.0,0.00551153]
[1731850425762,0.3608,90798.0,90792.0,0.00551153]
[1731850425763,0.055072,90794.0,90792.0,0.00551153]
[1731850426063,0.055072,90794.0,90793.0,0.00551153]
[1731850426567,0.05507,90797.0,90795.0,0.055071]
[1731850426872,0.05507,90797.0,90796.0,0.00551153]
[1731850427271,0.05507,90797.0,90796.0,0.00895618]
[1731850427870,0.18686795,90797.0,90796.0,0.00895618]
[1731850428063,0.18684189,90797.0,90796.0,0.00895618]
[1731850428377,0.05507,90797.0,90796.0,0.00895618]
[1731850429475,0.1868308,90797.0,90796.0,0.00895618]
[1731850429867,0.18683013,90797.0,90796.0,0.00895618]
[1731850430184,0.18683013,90797.0,90796.0,0.00344465]
[1731850430971,0.18682241,90797.0,90796.0,0.00344465]
[1731850431175,0.05507,90797.0,90796.0,0.00344465]
[1731850431668,0.18681454,90797.0,90796.0,0.00344465]
[1731850433267,0.21973243,90797.0,90796.0,0.00344465]
[1731850433662,0.05507,90797.0,90796.0,0.00344465]
[1731850433865,0.21973086,90797.0,90796.0,0.00344465]
[1731850435172,0.05507,90797.0,90796.0,0.00344465]
[1731850435870,0.10864925,90797.0,90796.0,0.00344465]
[1731850436074,0.05357909,90797.0,90786.0,0.055077]
[1731850436375,0.13176583,90789.0,90787.0,0.00895651]
[1731850436575,0.13176583,90789.0,90786.0,0.055077]
[1731850436576,0.13176583,90789.0,90788.0,0.00895651]
[1731850437574,0.13176583,90789.0,90788.0,0.06403251]
[1731850438062,0.055074,90791.0,90788.0,0.06403251]
[1731850438270,0.055074,90790.0,90789.0,0.00895651]
[1731850438863,0.055072,90794.0,90789.0,0.06403151]
[1731850439180,0.055072,90794.0,90790.0,0.00895651]
[1731850439181,0.055074,90791.0,90790.0,0.00895651]
[1731850439775,0.055074,90791.0,90790.0,0.0089563]
[1731850439972,0.16470729,90794.0,90790.0,0.0089563]
[1731850440276,0.13188236,90794.0,90793.0,0.055073]
[1731850440480,0.13188236,90794.0,90793.0,0.0640293]
[1731850440684,0.13188236,90795.0,90793.0,0.0089563]
[1731850440882,0.13188236,90795.0,90794.0,0.0640283]
[1731850441067,0.3608,90798.0,90794.0,0.0089563]
[1731850441274,0.3608,90798.0,90797.0,0.05507]
[1731850441578,0.3608,90798.0,90797.0,0.0640263]
[1731850441880,0.131983,90801.0,90798.0,0.05507]
[1731850442189,0.00165242,90812.0,90799.0,0.00895519]
[1731850442190,0.131983,90804.0,90799.0,0.00895519]
[1731850442476,0.131983,90805.0,90802.0,0.055067]
[1731850442685,0.54785,90803.0,90802.0,0.06402219]
[1731850443076,0.415867,90803.0,90802.0,0.79402219]
[1731850443275,0.055067,90803.0,90802.0,0.79402219]
[1731850443480,0.055067,90803.0,90802.0,0.73895519]
[1731850444375,0.055067,90803.0,90802.0,0.00895519]
[1731850444584,0.10864045,90803.0,90802.0,0.00895519]
[1731850444778,0.30628065,90803.0,90802.0,0.00895519]
[1731850444978,0.10864045,90803.0,90802.0,0.00895519]
[1731850445179,0.10864045,90803.0,90788.0,0.00311546]
[1731850445180,0.055076,90787.0,90786.0,0.00311546]
[1731850445385,0.055076,90787.0,90784.0,0.19810084]
[1731850445386,0.055077,90785.0,90784.0,0.00319739]
[1731850445687,0.18715293,90785.0,90784.0,0.19810084]
[1731850445882,0.18715293,90785.0,90784.0,0.73319851]
[1731850446184,0.18715293,90785.0,90784.0,0.73008193]
[1731850446382,0.055077,90785.0,90784.0,0.73008193]
[1731850446589,0.18715188,90785.0,90784.0,0.73008193]
[1731850447286,0.055077,90785.0,90784.0,0.92810084]
[1731850447476,0.18715188,90785.0,90784.0,0.92810084]
[1731850448087,0.18715188,90785.0,90784.0,0.73008193]
[1731850449282,0.13207488,90785.0,90784.0,0.73008193]
[1731850449982,0.13207488,90786.0,90785.0,0.055077]
[1731850450484,0.055076,90787.0,90785.0,0.25309591]
[1731850450685,0.055076,90787.0,90786.0,0.19808375]
[1731850451375,0.055077,90786.0,90785.0,0.2012002]
[1731850451884,0.055077,90786.0,90785.0,0.055077]
[1731850452089,0.13206315,90787.0,90786.0,0.055077]
[1731850452278,0.13206315,90788.0,90786.0,0.055077]
[1731850452675,0.055076,90787.0,90786.0,0.055077]
[1731850453188,0.055076,90787.0,90786.0,0.25316075]
[1731850453379,0.13206315,90789.0,90786.0,0.19808375]
[1731850453695,0.13206315,90789.0,90788.0,0.25315975]
[1731850454891,0.13206315,90793.0,90792.0,0.055073]
[1731850455082,0.13206315,90793.0,90787.0,0.26663697]
[1731850455083,0.5258949,90795.0,90794.0,0.055072]
[1731850455283,0.5258949,90795.0,90794.0,0.06058325]
[1731850455591,0.1650949,90795.0,90794.0,0.06058325]
[1731850455780,0.055071,90795.0,90794.0,0.06058325]
[1731850456678,0.055071,90795.0,90794.0,0.00551125]
[1731850456875,0.469443,90795.0,90794.0,0.00551125]
[1731850457281,0.469443,90795.0,90784.0,8.193e-05]
[1731850457282,0.61248588,90795.0,90788.0,0.055075]
[1731850457488,0.055075,90789.0,90788.0,0.055075]
[1731850457676,0.055075,90789.0,90788.0,0.06403123]
[1731850457877,0.055075,90789.0,90788.0,0.00895623]
[1731850458287,0.10865333,90789.0,90788.0,0.00895623]
[1731850460598,0.10865333,90789.0,90784.0,8.193e-05]
[1731850460599,0.055077,90785.0,90784.0,8.193e-05]
[1731850460780,0.46945533,90785.0,90784.0,8.193e-05]
[1731850461290,0.66754753,90785.0,90784.0,8.193e-05]
[1731850461495,0.46945533,90785.0,90784.0,8.193e-05]
[1731850462883,0.46946107,90785.0,90784.0,8.193e-05]
[1731850463086,0.415877,90785.0,90784.0,8.193e-05]
[1731850470207,0.46946116,90785.0,90784.0,8.193e-05]
[1731850470592,0.46946116,90785.0,90784.0,0.00559421]
[1731850471996,0.46946125,90785.0,90784.0,0.00559421]
[1731850472706,0.46946125,90785.0,90784.0,0.00903947]
[1731850473303,0.66755345,90785.0,90784.0,0.00903947]
[1731850473497,0.46946125,90785.0,90784.0,0.00903947]
[1731850473701,0.66755345,90785.0,90784.0,0.00903947]
[1731850474007,0.66755345,90785.0,90784.0,0.00903952]
[1731850474215,0.46946125,90785.0,90784.0,0.00903952]
[1731850475016,0.05508,90782.0,90776.0,0.05016393]
[1731850475319,0.16507498,90780.0,90777.0,0.00551232]
[1731850475511,0.16507498,90780.0,90778.0,0.00895752]
[1731850475706,0.16507498,90780.0,90776.0,0.05016393]
[1731850475910,0.16507498,90780.0,90777.0,0.00895749]
[1731850476116,0.16507498,90780.0,90778.0,0.00895749]
[1731850476419,0.16507498,90780.0,90779.0,0.00895749]
[1731850477617,0.22015598,90780.0,90779.0,0.0089575]
[1731850477920,0.10866804,90780.0,90779.0,0.0089575]
[1731850478222,0.055081,90780.0,90779.0,0.0089575]
[1731850479013,0.10866939,90780.0,90779.0,0.0089575]
[1731850480222,0.10866939,90780.0,90779.0,0.00344519]
[1731850480812,0.10866939,90780.0,90769.0,8.703e-05]
[1731850480813,0.5836532,90780.0,90769.0,8.703e-05]
[1731850481021,0.415887,90770.0,90769.0,8.703e-05]
[1731850481226,0.415887,90770.0,90769.0,0.00560016]
[1731850482619,0.415887,90770.0,90769.0,8.703e-05]
[1731850482923,0.46948314,90770.0,90769.0,8.703e-05]
[1731850483427,0.63561287,90770.0,90769.0,8.703e-05]
[1731850484225,0.47067194,90770.0,90769.0,8.703e-05]
[1731850484734,0.63561287,90770.0,90769.0,8.703e-05]
[1731850485227,0.47067194,90770.0,90769.0,0.00560044]
[1731850485430,0.55699194,90770.0,90769.0,0.00560044]
[1731850485627,0.55699194,90770.0,90769.0,8.703e-05]
[1731850485926,0.55699194,90770.0,90769.0,0.00560042]
[1731850486317,0.55699194,90770.0,90769.0,8.703e-05]
[1731850486731,0.72193287,90770.0,90769.0,8.703e-05]
[1731850486922,0.72192151,90770.0,90769.0,8.703e-05]
[1731850487228,0.55699194,90770.0,90769.0,0.00560039]
[1731850488123,0.55699194,90770.0,90754.0,0.19973003]
[1731850488124,0.99735451,90770.0,90754.0,0.19973003]
[1731850488322,0.3608,90755.0,90754.0,0.19973003]
[1731850488534,0.3608,90755.0,90754.0,0.0016525]
[1731850489619,0.3608,90755.0,90754.0,0.19973003]
[1731850490520,0.3608,90755.0,90754.0,0.0016525]
[1731850490726,0.3608,90755.0,90754.0,0.19973003]
[1731850490923,0.055096,90754.0,90753.0,0.7306]
[1731850491123,0.055096,90754.0,90753.0,0.73]
[1731850491630,0.055096,90754.0,90752.0,0.05599785]
[1731850491937,0.055096,90754.0,90749.0,0.0001137]
[1731850492229,0.055096,90754.0,90750.0,0.055098]
[1731850493021,0.055096,90754.0,90751.0,0.00344613]
[1731850493219,0.055096,90754.0,90752.0,0.00344613]
[1731850493416,0.055096,90754.0,90750.0,0.055098]
[1731850493417,0.055096,90754.0,90753.0,0.00344613]
[1731850494730,0.02962024,90754.0,90753.0,0.00344613]
[1731850495034,0.16157045,90754.0,90753.0,0.00344613]
[1731850495534,0.02962024,90754.0,90753.0,0.00344613]
[1731850498119,0.02962024,90754.0,90753.0,0.00895997]
[1731850501131,0.3608,90755.0,90749.0,0.0001137]
[1731850501335,0.055098,90751.0,90750.0,0.00895997]
[1731850504631,0.22662957,90754.0,90750.0,0.00896097]
[1731850504837,0.22662957,90754.0,90751.0,0.00896097]
[1731850505034,0.055097,90753.0,90752.0,0.00896092]
[1731850507229,0.22002657,90753.0,90752.0,0.00896092]
[1731850507632,0.055097,90753.0,90752.0,0.00896092]
[1731850508341,0.10870149,90753.0,90752.0,0.00896092]
[1731850509442,0.10870149,90753.0,90752.0,0.01585386]
[1731850509831,0.3608,90755.0,90752.0,0.01585386]
[1731850510034,0.05360397,90754.0,90753.0,0.07095086]
[1731850510234,0.05360308,90754.0,90753.0,0.07095086]
[1731850510430,0.05360308,90754.0,90753.0,0.80095086]
[1731850510632,0.5595322,90759.0,90753.0,0.7997132]
[1731850510633,0.00064,90759.0,90753.0,0.7997132]
[1731850510838,0.1980922,90776.0,90758.0,0.415893]
[1731850511035,0.3608,90777.0,90769.0,0.055087]
[1731850511235,0.055085,90772.0,90771.0,0.00311497]
[1731850511431,0.3608,90777.0,90759.0,0.19799668]
[1731850511648,0.3608,90777.0,90776.0,0.055083]
[1731850511834,0.415882,90777.0,90776.0,0.00344554]
[1731850512029,0.746362,90777.0,90776.0,0.00895841]
[1731850512234,0.746362,90777.0,90758.0,0.41518321]
[1731850512235,0.055093,90759.0,90757.0,0.19799668]
[1731850512435,0.055093,90759.0,90753.0,0.99428027]
[1731850512436,0.3608,90759.0,90754.0,0.19799668]
[1731850512641,0.3608,90759.0,90749.0,0.26363397]
[1731850512642,0.055098,90751.0,90749.0,0.0001137]
[1731850512966,0.3608,90750.0,90749.0,0.0001137]
[1731850513138,0.3608,90750.0,90747.0,0.19799668]
[1731850513139,1.17686,90750.0,90747.0,0.19799668]
[1731850513335,0.3306,90749.0,90729.0,0.00076]
[1731850513529,0.3608,90730.0,90720.0,0.32940034]
[1731850513733,0.3608,90730.0,90719.0,0.00076]
[1731850513734,0.3608,90722.0,90719.0,0.00076]
[1731850513940,0.3608,90722.0,90717.0,0.00076]
[1731850513941,0.055118,90718.0,90717.0,0.00076]
[1731850514147,0.055118,90718.0,90707.0,0.00076]
[1731850514148,0.55880426,90718.0,90707.0,0.00076]
[1731850514342,0.55880426,90718.0,90675.0,0.3659]